[Event "Titled Tuesday Blitz May 31 Early 2022"]
[White "Onslow, Alfie"]
[Black "Levitskiy, Andrey"]
[WhiteFideId "436976"]
[BlackFideId "14132885"]
[WhiteElo "1885"]
[BlackElo "2301"]
[Result "0-1"]
[Round "04"]
[TimeControl "180+1"]
[Date "2022.06.01"]
[WhiteClock "0:00:01"]
[BlackClock "0:00:03"]

1. Nf3 {[%clk 0:03:00]}  d5 {[%clk 0:02:59]} 2. c4 {[%clk 0:03:00]}  d4 {[%clk 0:02:58]} 3. b4 {[%clk 0:03:00]}  f6 {[%clk 0:02:59]} 4. e3 {[%clk 0:02:39]}  e5 {[%clk 0:02:59]} 5. exd4 {[%clk 0:02:38]}  exd4 {[%clk 0:03:00]} 6. d3 {[%clk 0:02:31]}  Bxb4+ {[%clk 0:02:58]} 7. Bd2 {[%clk 0:02:29]}  a5 {[%clk 0:02:54]} 8. Be2 {[%clk 0:02:16]}  Ne7 {[%clk 0:02:51]} 9. O-O {[%clk 0:02:16]}  Nbc6 {[%clk 0:02:51]} 10. a3 {[%clk 0:02:12]}  Bxd2 {[%clk 0:02:44]} 11. Nbxd2 {[%clk 0:02:13]}  O-O {[%clk 0:02:45]} 12. Qb3 {[%clk 0:02:06]}  Kh8 {[%clk 0:02:39]} 13. Ne4 {[%clk 0:01:58]}  Bf5 {[%clk 0:02:25]} 14. Nfd2 {[%clk 0:01:48]}  b6 {[%clk 0:02:18]} 15. f4 {[%clk 0:01:46]}  Qd7 {[%clk 0:02:11]} 16. h3 {[%clk 0:01:38]}  a4 {[%clk 0:02:09]} 17. Qb2 {[%clk 0:01:34]}  Rfe8 {[%clk 0:01:31]} 18. Bf3 {[%clk 0:01:33]}  Bg6 {[%clk 0:01:07]} 19. g4 {[%clk 0:01:08]}  f5 {[%clk 0:01:03]} 20. Nf2 {[%clk 0:00:59]}  h6 {[%clk 0:00:57]} 21. Kg2 {[%clk 0:00:58]}  Rf8 {[%clk 0:00:56]} 22. Rae1 {[%clk 0:00:41]}  fxg4 {[%clk 0:00:53]} 23. hxg4 {[%clk 0:00:31]}  Rxf4 {[%clk 0:00:52]} 24. Rxe7 {[%clk 0:00:31]}  Qxe7 {[%clk 0:00:43]} 25. Bxc6 {[%clk 0:00:30]}  Raf8 {[%clk 0:00:42]} 26. Nde4 {[%clk 0:00:26]}  Qh4 {[%clk 0:00:25]} 27. Qe2 {[%clk 0:00:26]}  Rf3 {[%clk 0:00:19]} 28. Qxf3 {[%clk 0:00:20]}  Rxf3 {[%clk 0:00:20]} 29. Kxf3 {[%clk 0:00:20]}  Qe7 {[%clk 0:00:16]} 30. Ke2 {[%clk 0:00:20]}  Qxa3 {[%clk 0:00:16]} 31. Bd5 {[%clk 0:00:20]}  Qb2+ {[%clk 0:00:15]} 32. Kf3 {[%clk 0:00:20]}  a3 {[%clk 0:00:15]} 33. Nd1 {[%clk 0:00:16]}  Qc2 {[%clk 0:00:13]} 34. Ndf2 {[%clk 0:00:13]}  a2 {[%clk 0:00:13]} 35. c5 {[%clk 0:00:13]}  bxc5 {[%clk 0:00:13]} 36. Ra1 {[%clk 0:00:11]}  c4 {[%clk 0:00:13]} 37. Bxc4 {[%clk 0:00:11]}  Bxe4+ {[%clk 0:00:13]} 38. Nxe4 {[%clk 0:00:10]}  Qh2 {[%clk 0:00:12]} 39. Rxa2 {[%clk 0:00:10]}  Qh3+ {[%clk 0:00:13]} 40. Kf4 {[%clk 0:00:11]}  Kh7 {[%clk 0:00:12]} 41. Ng3 {[%clk 0:00:10]}  Qh4 {[%clk 0:00:11]} 42. Kf3 {[%clk 0:00:10]}  Qf6+ {[%clk 0:00:10]} 43. Kg2 {[%clk 0:00:11]}  Qf4 {[%clk 0:00:10]} 44. Rf2 {[%clk 0:00:11]}  Qxg4 {[%clk 0:00:10]} 45. Bd5 {[%clk 0:00:11]}  Qd1 {[%clk 0:00:06]} 46. Be4+ {[%clk 0:00:11]}  Kg8 {[%clk 0:00:06]} 47. Bd5+ {[%clk 0:00:11]}  Kh7 {[%clk 0:00:07]} 48. Rf8 {[%clk 0:00:09]}  g6 {[%clk 0:00:03]} 49. Rf7+ {[%clk 0:00:09]}  Kh8 {[%clk 0:00:04]} 50. Be4 {[%clk 0:00:08]}  Kg8 {[%clk 0:00:03]} 51. Rxc7 {[%clk 0:00:08]}  Qd2+ {[%clk 0:00:03]} 52. Kh3 {[%clk 0:00:07]}  Qf4 {[%clk 0:00:02]} 53. Rc8+ {[%clk 0:00:07]}  Kg7 {[%clk 0:00:02]} 54. Rc4 {[%clk 0:00:07]}  h5 {[%clk 0:00:02]} 55. Kg2 {[%clk 0:00:07]}  h4 {[%clk 0:00:02]} 56. Ne2 {[%clk 0:00:06]}  Qd2 {[%clk 0:00:02]} 57. Kf2 {[%clk 0:00:06]}  Qe3+ {[%clk 0:00:01]} 58. Kf1 {[%clk 0:00:06]}  h3 {[%clk 0:00:02]} 59. Rc6 {[%clk 0:00:05]}  g5 {[%clk 0:00:02]} 60. Rg6+ {[%clk 0:00:05]}  Kf7 {[%clk 0:00:02]} 61. Rh6 {[%clk 0:00:05]}  g4 {[%clk 0:00:02]} 62. Rh7+ {[%clk 0:00:05]}  Kf6 {[%clk 0:00:03]} 63. Rh6+ {[%clk 0:00:05]}  Kg5 {[%clk 0:00:03]} 64. Rg6+ {[%clk 0:00:04]}  Kh4 {[%clk 0:00:04]} 65. Bh1 {[%clk 0:00:02]}  h2 {[%clk 0:00:04]} 66. Bg2 {[%clk 0:00:01]}  g3 {[%clk 0:00:03]} 0-1


[Site "https://www.chess.com"]

[Event "Titled Tuesday Blitz May 31 Early 2022"]
[White "Plazuelo Pascual, Juan"]
[Black "Tahbaz, Arash"]
[WhiteFideId "32059566"]
[BlackFideId "12528846"]
[WhiteElo "2359"]
[BlackElo "2381"]
[Result "0-1"]
[Round "04"]
[TimeControl "180+1"]
[Date "2022.05.31"]
[WhiteClock "0:00:23"]
[BlackClock "0:00:59"]

1. d4 {[%clk 0:03:00]}  Nf6 {[%clk 0:02:59]} 2. c4 {[%clk 0:03:01]}  g6 {[%clk 0:02:53]} 3. Nc3 {[%clk 0:03:01]}  Bg7 {[%clk 0:02:54]} 4. e4 {[%clk 0:03:01]}  d6 {[%clk 0:02:54]} 5. f3 {[%clk 0:03:01]}  O-O {[%clk 0:02:53]} 6. Be3 {[%clk 0:03:02]}  Nc6 {[%clk 0:02:53]} 7. Nge2 {[%clk 0:03:00]}  a6 {[%clk 0:02:52]} 8. Qd2 {[%clk 0:02:59]}  Na5 {[%clk 0:02:52]} 9. Nc1 {[%clk 0:02:59]}  Nd7 {[%clk 0:02:52]} 10. Nb3 {[%clk 0:02:57]}  c5 {[%clk 0:02:49]} 11. dxc5 {[%clk 0:02:56]}  Nxb3 {[%clk 0:02:49]} 12. axb3 {[%clk 0:02:57]}  Nxc5 {[%clk 0:02:29]} 13. b4 {[%clk 0:02:56]}  Nb3 {[%clk 0:02:28]} 14. Qd1 {[%clk 0:02:57]}  Nxa1 {[%clk 0:02:28]} 15. Qxa1 {[%clk 0:02:58]}  a5 {[%clk 0:02:24]} 16. b5 {[%clk 0:02:56]}  a4 {[%clk 0:02:24]} 17. Qa3 {[%clk 0:02:54]}  Qa5 {[%clk 0:02:24]} 18. Bd2 {[%clk 0:02:55]}  Be6 {[%clk 0:02:22]} 19. Nd5 {[%clk 0:02:47]}  Qd8 {[%clk 0:02:21]} 20. Bd3 {[%clk 0:02:47]}  Bxd5 {[%clk 0:02:21]} 21. cxd5 {[%clk 0:02:43]}  Qb6 {[%clk 0:02:21]} 22. Ke2 {[%clk 0:02:43]}  Rfc8 {[%clk 0:02:19]} 23. h4 {[%clk 0:02:40]}  Qc5 {[%clk 0:02:16]} 24. Bb4 {[%clk 0:02:31]}  Qd4 {[%clk 0:02:05]} 25. Bc3 {[%clk 0:02:32]}  Qb6 {[%clk 0:02:05]} 26. Bd2 {[%clk 0:02:27]}  Re8 {[%clk 0:01:35]} 27. h5 {[%clk 0:01:42]}  Rec8 {[%clk 0:01:34]} 28. hxg6 {[%clk 0:01:39]}  hxg6 {[%clk 0:01:35]} 29. Bg5 {[%clk 0:01:24]}  Qd4 {[%clk 0:01:28]} 30. Rb1 {[%clk 0:01:20]}  Qe5 {[%clk 0:01:21]} 31. Be3 {[%clk 0:01:20]}  Qg3 {[%clk 0:01:19]} 32. Kf1 {[%clk 0:01:17]}  Be5 {[%clk 0:01:19]} 33. Qb4 {[%clk 0:01:14]}  a3 {[%clk 0:01:16]} 34. bxa3 {[%clk 0:01:08]}  Rc3 {[%clk 0:01:16]} 35. Rb3 {[%clk 0:01:08]}  Rxb3 {[%clk 0:01:07]} 36. Qxb3 {[%clk 0:01:09]}  Qh2 {[%clk 0:01:08]} 37. a4 {[%clk 0:00:57]}  Bg3 {[%clk 0:00:59]} 38. Bg1 {[%clk 0:00:23]}  Qh1 {[%clk 0:00:59]} 0-1


[Site "https://www.chess.com"]

[Event "Titled Tuesday Blitz May 31 Early 2022"]
[White "Pranav, V"]
[Black "Dronavalli, Harika"]
[WhiteFideId "25060783"]
[BlackFideId "5015197"]
[WhiteElo "2349"]
[BlackElo "2382"]
[Result "1/2-1/2"]
[Round "04"]
[TimeControl "180+1"]
[Date "2022.05.31"]
[WhiteClock "0:00:51"]
[BlackClock "0:00:19"]

1. e4 {[%clk 0:03:00]}  c5 {[%clk 0:02:59]} 2. Nf3 {[%clk 0:03:00]}  e6 {[%clk 0:02:59]} 3. b3 {[%clk 0:02:59]}  Nc6 {[%clk 0:02:54]} 4. Bb2 {[%clk 0:02:58]}  Qc7 {[%clk 0:02:52]} 5. g3 {[%clk 0:02:58]}  Nf6 {[%clk 0:02:45]} 6. e5 {[%clk 0:02:58]}  Nd5 {[%clk 0:02:32]} 7. Bg2 {[%clk 0:02:57]}  Be7 {[%clk 0:02:32]} 8. O-O {[%clk 0:02:55]}  O-O {[%clk 0:02:32]} 9. Re1 {[%clk 0:02:56]}  b5 {[%clk 0:02:05]} 10. Nc3 {[%clk 0:02:55]}  Nxc3 {[%clk 0:02:04]} 11. dxc3 {[%clk 0:02:55]}  Bb7 {[%clk 0:02:03]} 12. h4 {[%clk 0:02:54]}  Rfd8 {[%clk 0:01:59]} 13. Qe2 {[%clk 0:02:54]}  a6 {[%clk 0:01:58]} 14. h5 {[%clk 0:02:54]}  h6 {[%clk 0:01:57]} 15. c4 {[%clk 0:02:49]}  d5 {[%clk 0:01:37]} 16. exd6 {[%clk 0:02:43]}  Bxd6 {[%clk 0:01:37]} 17. Rad1 {[%clk 0:02:35]}  Bf8 {[%clk 0:01:35]} 18. Ne5 {[%clk 0:02:30]}  Nxe5 {[%clk 0:01:29]} 19. Bxe5 {[%clk 0:02:27]}  Qb6 {[%clk 0:01:29]} 20. Be4 {[%clk 0:02:20]}  Bxe4 {[%clk 0:01:16]} 21. Qxe4 {[%clk 0:02:19]}  Rxd1 {[%clk 0:01:16]} 22. Rxd1 {[%clk 0:02:20]}  Rd8 {[%clk 0:01:16]} 23. Rxd8 {[%clk 0:02:18]}  Qxd8 {[%clk 0:01:17]} 24. cxb5 {[%clk 0:02:12]}  axb5 {[%clk 0:01:17]} 25. a4 {[%clk 0:02:13]}  bxa4 {[%clk 0:01:18]} 26. bxa4 {[%clk 0:02:13]}  Qa5 {[%clk 0:01:10]} 27. Kg2 {[%clk 0:02:07]}  c4 {[%clk 0:01:07]} 28. Qd4 {[%clk 0:01:26]}  Qxa4 {[%clk 0:01:06]} 29. Qd8 {[%clk 0:01:23]}  Qc6+ {[%clk 0:01:06]} 30. Kg1 {[%clk 0:01:15]}  Qd5 {[%clk 0:01:06]} 31. Qb8 {[%clk 0:01:13]}  f6 {[%clk 0:01:02]} 32. Bc3 {[%clk 0:01:08]}  Qd1+ {[%clk 0:00:51]} 33. Kg2 {[%clk 0:01:06]}  Qd5+ {[%clk 0:00:46]} 34. Kg1 {[%clk 0:01:04]}  Qd6 {[%clk 0:00:46]} 35. Qc8 {[%clk 0:01:00]}  Qd1+ {[%clk 0:00:46]} 36. Kg2 {[%clk 0:00:59]}  Qd5+ {[%clk 0:00:45]} 37. Kg1 {[%clk 0:00:58]}  Kf7 {[%clk 0:00:36]} 38. Qc7+ {[%clk 0:00:54]}  Kg8 {[%clk 0:00:20]} 39. Qc8 {[%clk 0:00:53]}  Kf7 {[%clk 0:00:20]} 40. Qc7+ {[%clk 0:00:52]}  Kg8 {[%clk 0:00:19]} 41. Qc8 {[%clk 0:00:51]} 1/2-1/2


[Site "https://www.chess.com"]

[Event "Titled Tuesday Blitz May 31 Early 2022"]
[White "Pranesh M"]
[Black "Ajay Krishna, S"]
[WhiteFideId "35028600"]
[BlackFideId "5096430"]
[WhiteElo "1902"]
[BlackElo "2247"]
[Result "1/2-1/2"]
[Round "04"]
[TimeControl "180+1"]
[Date "2022.06.01"]
[WhiteClock "0:01:11"]
[BlackClock "0:00:46"]

1. e4 {[%clk 0:03:00]}  e5 {[%clk 0:02:59]} 2. Nf3 {[%clk 0:03:01]}  Nc6 {[%clk 0:03:00]} 3. d4 {[%clk 0:03:01]}  exd4 {[%clk 0:02:59]} 4. Bc4 {[%clk 0:03:02]}  d6 {[%clk 0:02:55]} 5. Nxd4 {[%clk 0:03:02]}  Bd7 {[%clk 0:02:52]} 6. Nc3 {[%clk 0:03:01]}  Nf6 {[%clk 0:02:52]} 7. O-O {[%clk 0:03:01]}  Be7 {[%clk 0:02:52]} 8. Bf4 {[%clk 0:03:01]}  O-O {[%clk 0:02:52]} 9. h3 {[%clk 0:03:02]}  Nxd4 {[%clk 0:02:35]} 10. Qxd4 {[%clk 0:03:03]}  Nh5 {[%clk 0:02:34]} 11. Bh2 {[%clk 0:03:02]}  Bf6 {[%clk 0:02:33]} 12. Qd2 {[%clk 0:03:02]}  Bxc3 {[%clk 0:02:26]} 13. Qxc3 {[%clk 0:03:01]}  Qf6 {[%clk 0:02:26]} 14. e5 {[%clk 0:02:59]}  dxe5 {[%clk 0:02:24]} 15. Bxe5 {[%clk 0:03:00]}  Qg6 {[%clk 0:02:22]} 16. Bd3 {[%clk 0:02:58]}  Bf5 {[%clk 0:02:16]} 17. Bxf5 {[%clk 0:02:48]}  Qxf5 {[%clk 0:02:16]} 18. g4 {[%clk 0:02:40]}  Qg6 {[%clk 0:02:15]} 19. Qxc7 {[%clk 0:02:40]}  Rac8 {[%clk 0:02:10]} 20. Qxb7 {[%clk 0:02:39]}  Rxc2 {[%clk 0:02:10]} 21. Rad1 {[%clk 0:02:35]}  Nf6 {[%clk 0:02:03]} 22. Rd6 {[%clk 0:02:21]}  Qe4 {[%clk 0:01:57]} 23. Qxe4 {[%clk 0:02:21]}  Nxe4 {[%clk 0:01:57]} 24. Rd7 {[%clk 0:02:07]}  Nd2 {[%clk 0:01:54]} 25. Bd6 {[%clk 0:02:08]}  Nxf1 {[%clk 0:01:48]} 26. Bxf8 {[%clk 0:02:07]}  Kxf8 {[%clk 0:01:43]} 27. Kxf1 {[%clk 0:02:07]}  Rxb2 {[%clk 0:01:43]} 28. Rxa7 {[%clk 0:02:08]}  g5 {[%clk 0:01:39]} 29. Ra5 {[%clk 0:02:06]}  h6 {[%clk 0:01:38]} 30. Kg2 {[%clk 0:02:06]}  Kg7 {[%clk 0:01:38]} 31. Kg3 {[%clk 0:02:06]}  Kg6 {[%clk 0:01:37]} 32. Ra6+ {[%clk 0:02:06]}  f6 {[%clk 0:01:38]} 33. Ra7 {[%clk 0:02:06]}  h5 {[%clk 0:01:36]} 34. gxh5+ {[%clk 0:02:06]}  Kxh5 {[%clk 0:01:36]} 35. a4 {[%clk 0:02:06]}  Ra2 {[%clk 0:01:33]} 36. a5 {[%clk 0:02:05]}  f5 {[%clk 0:01:31]} 37. a6 {[%clk 0:02:02]}  Ra3+ {[%clk 0:01:30]} 38. Kg2 {[%clk 0:02:02]}  g4 {[%clk 0:01:27]} 39. h4 {[%clk 0:01:49]}  Kxh4 {[%clk 0:01:22]} 40. Ra8 {[%clk 0:01:49]}  Kg5 {[%clk 0:01:22]} 41. Rg8+ {[%clk 0:01:27]}  Kf4 {[%clk 0:01:21]} 42. Rg6 {[%clk 0:01:27]}  Ra2 {[%clk 0:01:20]} 43. Rb6 {[%clk 0:01:27]}  Ra3 {[%clk 0:01:20]} 44. Rg6 {[%clk 0:01:25]}  Ra2 {[%clk 0:01:20]} 45. Rb6 {[%clk 0:01:25]}  g3 {[%clk 0:01:16]} 46. Rb4+ {[%clk 0:01:25]}  Kg5 {[%clk 0:01:16]} 47. Kxg3 {[%clk 0:01:25]}  Rxa6 {[%clk 0:01:16]} 48. Rb3 {[%clk 0:01:25]}  Rc6 {[%clk 0:01:15]} 49. Rb4 {[%clk 0:01:25]}  Rd6 {[%clk 0:01:12]} 50. f4+ {[%clk 0:01:24]}  Kh5 {[%clk 0:01:10]} 51. Rb3 {[%clk 0:01:23]}  Rc6 {[%clk 0:01:10]} 52. Kf3 {[%clk 0:01:21]}  Rd6 {[%clk 0:01:08]} 53. Rb5 {[%clk 0:01:19]}  Rd3+ {[%clk 0:01:03]} 54. Ke2 {[%clk 0:01:19]}  Rh3 {[%clk 0:00:55]} 55. Rxf5+ {[%clk 0:01:18]}  Kg4 {[%clk 0:00:56]} 56. Rf8 {[%clk 0:01:18]}  Ra3 {[%clk 0:00:55]} 57. Rf7 {[%clk 0:01:18]}  Rb3 {[%clk 0:00:55]} 58. f5 {[%clk 0:01:12]}  Kg5 {[%clk 0:00:54]} 59. Rf8 {[%clk 0:01:11]}  Rb5 {[%clk 0:00:49]} 60. f6 {[%clk 0:01:10]}  Kg6 {[%clk 0:00:50]} 61. Ke3 {[%clk 0:01:06]}  Rf5 {[%clk 0:00:49]} 62. Ke4 {[%clk 0:01:06]}  Rxf6 {[%clk 0:00:49]} 63. Rb8 {[%clk 0:01:07]}  Rc6 {[%clk 0:00:49]} 64. Kd5 {[%clk 0:01:07]}  Rf6 {[%clk 0:00:49]} 65. Ke5 {[%clk 0:01:07]}  Rc6 {[%clk 0:00:49]} 66. Rg8+ {[%clk 0:01:07]}  Kf7 {[%clk 0:00:48]} 67. Rg1 {[%clk 0:01:08]}  Re6+ {[%clk 0:00:48]} 68. Kd5 {[%clk 0:01:08]}  Re2 {[%clk 0:00:48]} 69. Rh1 {[%clk 0:01:08]}  Kg7 {[%clk 0:00:48]} 70. Rf1 {[%clk 0:01:08]}  Kg6 {[%clk 0:00:48]} 71. Kd4 {[%clk 0:01:09]}  Kg5 {[%clk 0:00:48]} 72. Rg1+ {[%clk 0:01:09]}  Kf6 {[%clk 0:00:47]} 73. Kd3 {[%clk 0:01:10]}  Re7 {[%clk 0:00:47]} 74. Rb1 {[%clk 0:01:09]}  Kf7 {[%clk 0:00:46]} 75. Rb6 {[%clk 0:01:10]}  Kf8 {[%clk 0:00:46]} 76. Kd4 {[%clk 0:01:10]}  Ke8 {[%clk 0:00:46]} 77. Kd5 {[%clk 0:01:10]}  Kf7 {[%clk 0:00:47]} 78. Rb8 {[%clk 0:01:10]}  Kg7 {[%clk 0:00:47]} 79. Kd6 {[%clk 0:01:10]}  Re2 {[%clk 0:00:47]} 80. Rb3 {[%clk 0:01:10]}  Kf7 {[%clk 0:00:47]} 81. Rf3+ {[%clk 0:01:10]}  Kg6 {[%clk 0:00:47]} 82. Kd5 {[%clk 0:01:10]}  Kg5 {[%clk 0:00:47]} 83. Rf1 {[%clk 0:01:11]}  Kg4 {[%clk 0:00:47]} 84. Kd4 {[%clk 0:01:11]}  Kg5 {[%clk 0:00:48]} 85. Rf7 {[%clk 0:01:11]}  Re8 {[%clk 0:00:47]} 86. Rg7+ {[%clk 0:01:11]}  Kf6 {[%clk 0:00:48]} 87. Rg1 {[%clk 0:01:12]}  Kf7 {[%clk 0:00:47]} 88. Rf1+ {[%clk 0:01:12]}  Kg7 {[%clk 0:00:47]} 89. Kd5 {[%clk 0:01:12]}  Kg6 {[%clk 0:00:47]} 90. Kd6 {[%clk 0:01:12]}  Kg5 {[%clk 0:00:47]} 91. Rf7 {[%clk 0:01:13]}  Kg6 {[%clk 0:00:47]} 92. Rf1 {[%clk 0:01:12]}  Kg5 {[%clk 0:00:47]} 93. Kd7 {[%clk 0:01:13]}  Re2 {[%clk 0:00:47]} 94. Rg1+ {[%clk 0:01:13]}  Kf5 {[%clk 0:00:47]} 95. Kd6 {[%clk 0:01:13]}  Re3 {[%clk 0:00:46]} 96. Kd5 {[%clk 0:01:11]} 1/2-1/2


[Site "https://www.chess.com"]

[Event "Titled Tuesday Blitz May 31 Early 2022"]
[White "Sadubayev, Airat"]
[Black "Neelotpal, Das"]
[WhiteFideId "13713264"]
[BlackFideId "5003512"]
[WhiteElo "2234"]
[BlackElo "2405"]
[Result "1-0"]
[Round "04"]
[TimeControl "180+1"]
[Date "2022.06.01"]
[WhiteClock "0:00:06"]
[BlackClock "0:00:10"]

1. e4 {[%clk 0:02:56]}  c5 {[%clk 0:02:51]} 2. Nf3 {[%clk 0:02:55]}  Nc6 {[%clk 0:02:51]} 3. d4 {[%clk 0:02:52]}  cxd4 {[%clk 0:02:51]} 4. Nxd4 {[%clk 0:02:52]}  Qb6 {[%clk 0:02:50]} 5. Nb3 {[%clk 0:02:50]}  e6 {[%clk 0:02:51]} 6. Nc3 {[%clk 0:02:49]}  Bb4 {[%clk 0:02:50]} 7. Bd3 {[%clk 0:02:46]}  Nf6 {[%clk 0:02:47]} 8. O-O {[%clk 0:02:45]}  O-O {[%clk 0:02:41]} 9. Be3 {[%clk 0:02:44]}  Qc7 {[%clk 0:02:41]} 10. f4 {[%clk 0:02:42]}  Bxc3 {[%clk 0:02:41]} 11. bxc3 {[%clk 0:02:41]}  d6 {[%clk 0:02:41]} 12. g4 {[%clk 0:02:37]}  e5 {[%clk 0:02:37]} 13. f5 {[%clk 0:02:23]}  d5 {[%clk 0:02:38]} 14. exd5 {[%clk 0:02:19]}  Nxd5 {[%clk 0:02:37]} 15. Bd2 {[%clk 0:02:13]}  f6 {[%clk 0:02:10]} 16. Qf3 {[%clk 0:02:05]}  Nce7 {[%clk 0:01:57]} 17. c4 {[%clk 0:02:00]}  Nb6 {[%clk 0:01:57]} 18. c5 {[%clk 0:01:50]}  Nd7 {[%clk 0:01:55]} 19. Ba5 {[%clk 0:01:44]}  Qc6 {[%clk 0:01:53]} 20. Be4 {[%clk 0:01:40]}  Qa6 {[%clk 0:01:46]} 21. Qd3 {[%clk 0:01:36]}  Qxd3 {[%clk 0:01:43]} 22. cxd3 {[%clk 0:01:35]}  Nc6 {[%clk 0:01:41]} 23. Bc3 {[%clk 0:01:31]}  Rd8 {[%clk 0:01:36]} 24. Rab1 {[%clk 0:01:22]}  Ndb8 {[%clk 0:01:28]} 25. Kf2 {[%clk 0:01:19]}  Bd7 {[%clk 0:01:27]} 26. Ke3 {[%clk 0:01:17]}  Na6 {[%clk 0:01:26]} 27. Rb2 {[%clk 0:01:11]}  Nc7 {[%clk 0:01:22]} 28. Rfb1 {[%clk 0:00:53]}  Nb5 {[%clk 0:01:15]} 29. Bd2 {[%clk 0:00:52]}  Na3 {[%clk 0:01:16]} 30. Rc1 {[%clk 0:00:50]}  Be8 {[%clk 0:01:16]} 31. Na5 {[%clk 0:00:46]}  Rab8 {[%clk 0:01:02]} 32. Rc3 {[%clk 0:00:32]}  Nxa5 {[%clk 0:00:59]} 33. Rxa3 {[%clk 0:00:32]}  Nc6 {[%clk 0:00:59]} 34. Rab3 {[%clk 0:00:29]}  b5 {[%clk 0:00:35]} 35. cxb6 {[%clk 0:00:29]}  axb6 {[%clk 0:00:33]} 36. Rxb6 {[%clk 0:00:28]}  Rxb6 {[%clk 0:00:34]} 37. Rxb6 {[%clk 0:00:28]}  Nd4 {[%clk 0:00:34]} 38. Rb2 {[%clk 0:00:21]}  h5 {[%clk 0:00:30]} 39. h3 {[%clk 0:00:20]}  hxg4 {[%clk 0:00:27]} 40. hxg4 {[%clk 0:00:21]}  Rc8 {[%clk 0:00:20]} 41. Ba5 {[%clk 0:00:18]}  Bf7 {[%clk 0:00:18]} 42. Bb6 {[%clk 0:00:16]}  Rc2 {[%clk 0:00:16]} 43. Rxc2 {[%clk 0:00:14]}  Nxc2+ {[%clk 0:00:16]} 44. Kd2 {[%clk 0:00:14]}  Na3 {[%clk 0:00:16]} 45. Bc5 {[%clk 0:00:12]}  Nb1+ {[%clk 0:00:13]} 46. Kc2 {[%clk 0:00:11]}  Bxa2 {[%clk 0:00:13]} 47. Kb2 {[%clk 0:00:12]}  Nd2 {[%clk 0:00:11]} 48. Kxa2 {[%clk 0:00:11]}  Nf1 {[%clk 0:00:10]} 49. Bf3 {[%clk 0:00:09]}  Ng3 {[%clk 0:00:11]} 50. Bf2 {[%clk 0:00:06]}  Nf1 {[%clk 0:00:11]} 51. Kb2 {[%clk 0:00:05]}  Nh2 {[%clk 0:00:12]} 52. Be2 {[%clk 0:00:03]}  g6 {[%clk 0:00:11]} 53. Bg3 {[%clk 0:00:04]}  gxf5 {[%clk 0:00:11]} 54. gxf5 {[%clk 0:00:04]}  Kg7 {[%clk 0:00:10]} 55. Bxh2 {[%clk 0:00:04]}  Kh6 {[%clk 0:00:11]} 56. Kc3 {[%clk 0:00:04]}  Kg5 {[%clk 0:00:12]} 57. Kc4 {[%clk 0:00:04]}  Kxf5 {[%clk 0:00:09]} 58. Kd5 {[%clk 0:00:04]}  Kg5 {[%clk 0:00:08]} 59. Bxe5 {[%clk 0:00:04]}  fxe5 {[%clk 0:00:08]} 60. Kxe5 {[%clk 0:00:05]}  Kg6 {[%clk 0:00:08]} 61. Ke6 {[%clk 0:00:05]}  Kg5 {[%clk 0:00:08]} 62. d4 {[%clk 0:00:05]}  Kf4 {[%clk 0:00:09]} 63. d5 {[%clk 0:00:05]}  Ke3 {[%clk 0:00:10]} 64. d6 {[%clk 0:00:06]}  Kxe2 {[%clk 0:00:10]} 65. d7 {[%clk 0:00:06]} 1-0


[Site "https://www.chess.com"]

[Event "Titled Tuesday Blitz May 31 Early 2022"]
[White "Skliarov, Viktor"]
[Black "Kamsky, Gata"]
[WhiteFideId "14106736"]
[BlackFideId "2000024"]
[WhiteElo "2229"]
[BlackElo "2645"]
[Result "1/2-1/2"]
[Round "04"]
[TimeControl "180+1"]
[Date "2022.05.31"]
[WhiteClock "0:00:19"]
[BlackClock "0:00:40"]

1. e4 {[%clk 0:03:00]}  e5 {[%clk 0:02:58]} 2. Nc3 {[%clk 0:03:01]}  Nf6 {[%clk 0:02:54]} 3. Bc4 {[%clk 0:03:01]}  Nc6 {[%clk 0:02:50]} 4. d3 {[%clk 0:03:01]}  Na5 {[%clk 0:02:43]} 5. Nge2 {[%clk 0:03:00]}  Nxc4 {[%clk 0:02:42]} 6. dxc4 {[%clk 0:03:01]}  d6 {[%clk 0:02:42]} 7. Ng3 {[%clk 0:02:58]}  g6 {[%clk 0:02:31]} 8. Bg5 {[%clk 0:02:18]}  Be7 {[%clk 0:02:26]} 9. O-O {[%clk 0:02:10]}  h6 {[%clk 0:02:17]} 10. Be3 {[%clk 0:01:46]}  c6 {[%clk 0:02:16]} 11. h3 {[%clk 0:01:37]}  Be6 {[%clk 0:02:13]} 12. b3 {[%clk 0:01:37]}  h5 {[%clk 0:02:05]} 13. Qd2 {[%clk 0:01:31]}  h4 {[%clk 0:02:00]} 14. Nge2 {[%clk 0:01:29]}  d5 {[%clk 0:01:59]} 15. cxd5 {[%clk 0:01:24]}  cxd5 {[%clk 0:01:59]} 16. exd5 {[%clk 0:01:23]}  Nxd5 {[%clk 0:01:58]} 17. Nxd5 {[%clk 0:01:11]}  Qxd5 {[%clk 0:01:56]} 18. Qxd5 {[%clk 0:01:11]}  Bxd5 {[%clk 0:01:55]} 19. c4 {[%clk 0:01:12]}  Bc6 {[%clk 0:01:52]} 20. f4 {[%clk 0:00:55]}  exf4 {[%clk 0:01:30]} 21. Nxf4 {[%clk 0:00:47]}  O-O {[%clk 0:01:29]} 22. Rad1 {[%clk 0:00:38]}  Rfd8 {[%clk 0:01:23]} 23. Kf2 {[%clk 0:00:35]}  a6 {[%clk 0:01:22]} 24. Bb6 {[%clk 0:00:33]}  Rxd1 {[%clk 0:01:21]} 25. Rxd1 {[%clk 0:00:34]}  Re8 {[%clk 0:01:19]} 26. Nd5 {[%clk 0:00:30]}  Bg5 {[%clk 0:01:17]} 27. Be3 {[%clk 0:00:29]}  Bd8 {[%clk 0:01:16]} 28. Bd4 {[%clk 0:00:23]}  f5 {[%clk 0:00:40]} 29. Nf6+ {[%clk 0:00:21]}  Bxf6 {[%clk 0:00:40]} 30. Bxf6 {[%clk 0:00:22]}  Re4 {[%clk 0:00:40]} 31. Rd4 {[%clk 0:00:21]}  Rxd4 {[%clk 0:00:40]} 32. Bxd4 {[%clk 0:00:20]}  Kf7 {[%clk 0:00:40]} 33. Bb6 {[%clk 0:00:19]} 1/2-1/2


[Site "https://www.chess.com"]